bitfinex-derivatives/quotes_ETHF0:USTF0_20260117
["timestamp","ask_amount","ask_price","bid_price","bid_amount"]
[1768663731241,0.52045421,3320.9,3319.6,40.8]
[1768663733844,0.00370308,3320.9,3319.6,40.8]
[1768663734041,0.00370308,3320.9,3319.7,0.15066]
[1768663735647,0.59188484,3320.9,3319.8,4.701]
[1768663736947,0.59188484,3320.9,3319.7,4.85366]
[1768663737147,0.59188484,3320.9,3319.7,0.15066]
[1768663742632,0.59188484,3320.9,3319.7,0.14452]
[1768663744949,0.59188484,3320.9,3319.8,4.717]
[1768663749354,0.59188484,3320.9,3319.8,5.68530203]
[1768663756450,0.59188484,3320.9,3319.8,4.717]
[1768663756654,0.59188484,3320.9,3319.8,5.68530203]
[1768663757759,0.59188484,3320.9,3320.0,0.96830203]
[1768663757957,0.58818176,3321.3,3320.4,0.96830203]
[1768663758157,0.98106015,3321.2,3320.4,0.96830203]
[1768663758356,0.58818176,3321.3,3320.4,0.96830203]
[1768663758550,0.98105014,3321.2,3320.4,0.96830203]
[1768663758750,0.58818176,3321.3,3320.4,0.96217003]
[1768663759060,0.98105014,3321.2,3320.4,0.96217003]
[1768663759363,0.98105014,3321.1,3319.8,4.717]
[1768663759662,0.59099636,3321.3,3320.0,0.96830203]
[1768663759866,1.57002593,3321.2,3320.0,0.96830203]
[1768663760072,0.98184417,3321.1,3320.0,0.96830203]
[1768663760265,0.58818176,3321.2,3320.0,0.96830203]
[1768663760465,1.56997812,3321.1,3320.0,0.96830203]
[1768663760652,0.58818176,3321.1,3319.7,0.14452]
[1768663760858,0.98181688,3321.0,3319.8,4.73]
[1768663761168,0.58818176,3321.0,3319.9,0.96830203]
[1768663762560,0.58818176,3321.0,3319.8,4.73]
[1768663762769,0.58818176,3321.0,3319.9,0.96830203]
[1768663771072,0.58818176,3321.0,3320.1,0.96830203]
[1768663774776,0.0028146,3321.3,3320.3,0.96830203]
[1768663777382,0.0028146,3321.3,3319.8,0.96803375]
[1768663779184,0.0028146,3321.3,3319.7,4.88152]
[1768663779386,0.0028146,3321.3,3319.7,5.84955375]
[1768663781984,0.65550914,3321.3,3319.7,5.84955375]
[1768663783276,0.65550914,3321.3,3319.7,4.88152]
[1768663792792,0.65550914,3321.3,3319.7,0.14452]
[1768663792988,0.65550914,3321.3,3319.8,4.767]
[1768663795990,0.65550914,3321.3,3319.6,40.8]
[1768663796198,0.65550914,3321.3,3319.7,4.77]
[1768663796495,0.65550914,3321.3,3319.4,0.00239647]
[1768663797086,0.65550914,3321.3,3319.5,40.8]
[1768663797298,0.6373855,3321.1,3319.5,40.8]
[1768663797499,0.6373855,3321.1,3319.4,0.00239647]
[1768663798001,0.6373855,3321.1,3319.4,40.80239647]
[1768663799897,0.6373855,3320.7,3319.4,0.00239647]
[1768663804595,0.6373855,3321.2,3319.7,0.96803375]
[1768663805399,0.6373855,3321.2,3319.6,4.196]
[1768663805806,0.6373855,3321.2,3319.7,40.8]
[1768663806308,0.0028146,3321.3,3319.7,40.8]
[1768663806605,0.006022,3321.4,3320.1,0.29615629]
[1768663807603,0.00954647,3321.4,3320.1,0.29615629]
[1768663809603,0.00954647,3321.4,3320.0,0.15065]
[1768663809805,0.64693197,3321.4,3320.0,0.15065]
[1768663810308,0.64693197,3321.4,3319.9,4.772]
[1768663810504,0.64693197,3321.4,3319.8,4.773]
[1768663811511,0.00954647,3321.4,3320.1,0.96803375]
[1768663811909,0.6373855,3321.8,3320.1,1.26533733]
[1768663812104,0.6373855,3321.8,3320.1,1.41597733]
[1768663812309,0.6373855,3322.4,3320.5,0.96803375]
[1768663812509,0.6373855,3322.2,3320.5,5.74303375]
[1768663812911,0.64071684,3322.2,3320.5,5.74303375]
[1768663813113,0.64071684,3322.2,3320.5,4.775]
[1768663813603,0.64071684,3322.2,3320.5,5.74303375]
[1768663814207,0.00333134,3322.2,3320.9,0.96803375]
[1768663814517,0.64071684,3322.2,3320.7,4.92262]
[1768663815007,0.6373855,3322.1,3320.2,3.877]
[1768663815215,0.6373855,3322.1,3320.1,4.92064]
[1768663815403,0.6373855,3322.1,3320.2,1.11867375]
[1768663815607,0.6373855,3322.1,3320.2,1.39044469]
[1768663817519,0.6373855,3322.1,3320.3,0.15064]
[1768663817915,0.6373855,3322.1,3320.4,0.26654931]
[1768663818114,0.6373855,3323.0,3321.4,0.96803375]
[1768663818713,0.6373855,3323.0,3321.5,40.8]
[1768663819112,0.64114483,3323.0,3321.5,40.8]
[1768663821414,0.00375933,3323.0,3321.5,40.8]
[1768663822019,0.00375933,3323.0,3321.5,44.677]
[1768663822220,0.65406395,3323.0,3321.5,49.443]
[1768663823222,0.00375933,3323.0,3321.5,49.443]
[1768663823527,0.00375933,3323.0,3321.5,45.566]
[1768663824830,0.00375933,3323.0,3321.8,0.96803375]
[1768663825021,0.65030462,3323.4,3321.8,0.96803375]
[1768663826122,0.6534186,3323.4,3321.8,0.97029825]
[1768663826932,0.6534186,3323.4,3321.8,1.12086825]
[1768663828523,0.6534186,3323.4,3321.8,0.0022645]
[1768663828724,0.6534186,3323.4,3321.8,4.7752645]
[1768663829122,0.6534186,3323.4,3321.8,0.0022645]
[1768663829923,0.65030462,3323.1,3321.8,0.0022645]
[1768663839353,0.71158525,3322.7,3321.8,0.0022645]
[1768663842849,0.71158525,3322.5,3321.8,0.0022645]
[1768663843956,0.71158525,3322.5,3321.2,40.8]
[1768663843957,0.71158525,3322.5,3321.2,41.76734787]
[1768663844850,0.71158525,3322.5,3321.2,41.77028986]
[1768663845256,0.71158525,3322.5,3321.2,40.80294199]
[1768663845458,0.71158525,3322.5,3321.2,41.77028986]
[1768663845658,0.71158525,3322.2,3321.2,40.80294199]
[1768663845964,0.71158525,3322.2,3321.2,0.00294199]
[1768663848561,0.71158525,3322.1,3321.2,0.00294199]
[1768663849867,0.71158525,3321.9,3321.2,0.00294199]
[1768663850266,0.71158525,3321.9,3320.6,40.8]
[1768663850475,0.71158525,3321.9,3320.6,0.96734787]
[1768663850762,0.71158525,3321.9,3320.8,0.96734787]
[1768663851470,0.71158525,3321.9,3320.8,0.9701791]
[1768663851769,0.71158525,3321.9,3320.8,0.00283123]
[1768663853061,0.71158525,3321.9,3320.9,0.96734787]
[1768663855869,0.71158525,3321.9,3320.8,0.00283123]
[1768663856072,0.71158525,3321.9,3320.8,0.9701791]
[1768663857981,0.71158525,3321.9,3320.8,0.00283123]
[1768663863986,1.67893312,3321.9,3320.8,0.00283123]
[1768663864185,0.6680167,3321.8,3320.8,0.00283123]
[1768663874694,0.6680167,3321.8,3321.0,0.96734787]
[1768663875098,0.6680167,3321.8,3320.8,0.00283123]
[1768663875394,0.6680167,3321.8,3320.9,0.96734787]
[1768663877788,0.6680167,3321.8,3320.8,0.00283123]
[1768663882592,1.63536457,3321.8,3320.8,0.00283123]
[1768663882893,0.70205391,3321.7,3320.8,0.00283123]
[1768663883594,0.70205391,3321.3,3320.0,0.96734787]
[1768663883796,0.70205391,3321.3,3320.0,41.76734787]
[1768663884497,0.70205391,3321.3,3320.0,41.7700319]
[1768663887305,0.70205391,3321.3,3320.0,40.80268403]
[1768663887507,0.70205391,3321.3,3320.0,46.5690319]
[1768663888007,0.70205391,3321.3,3320.0,41.7700319]
[1768663888192,0.70205391,3321.3,3320.0,46.5700319]
[1768663889902,0.70205391,3321.3,3320.0,41.7700319]
[1768663890104,0.70205391,3321.1,3320.1,4.805]
[1768663894299,0.96734787,3320.2,3319.1,0.15069]
[1768663894508,1.66532538,3320.4,3319.1,0.15069]
[1768663895405,1.6674962,3320.4,3319.1,0.15330602]
[1768663895606,0.69797751,3320.3,3319.1,0.15330602]
[1768663899794,0.69797751,3320.3,3319.2,4.813]
[1768663900607,0.69797751,3320.3,3319.1,0.00261602]
[1768663900806,0.69797751,3320.3,3319.3,4.814]
[1768663905810,0.69797751,3320.3,3319.1,0.00261602]
[1768663911220,0.00217082,3320.4,3319.1,0.00261602]
[1768663911420,0.00217082,3320.4,3319.1,1.12201151]
[1768663916127,0.00217082,3320.4,3319.1,0.15330602]
[1768663916741,0.75306135,3320.4,3319.1,0.15330602]
[1768663917217,0.75306135,3320.4,3319.2,4.821]
[1768663920430,0.75306135,3320.4,3319.1,0.15330602]
[1768663920834,0.75089053,3320.2,3319.1,0.15330602]
[1768663922531,0.00217082,3320.4,3319.1,0.15330602]
[1768663922726,0.75306135,3320.4,3319.1,0.15330602]
[1768663928241,0.75306135,3320.4,3319.1,0.00261602]
[1768663928442,0.75089053,3320.2,3319.1,0.00261602]
[1768663929345,0.75089053,3320.0,3319.1,0.00261602]
[1768663933744,0.75306135,3320.4,3319.1,0.00261602]
[1768663937238,0.75089053,3320.1,3319.1,0.00261602]
[1768663946761,0.00217082,3320.4,3319.1,0.00261602]
[1768663947263,0.82433701,3320.4,3319.1,0.00261602]
[1768663948460,0.82433701,3320.4,3319.1,0.15330602]
[1768663958064,0.00217082,3320.4,3319.1,0.81122826]
[1768663958259,0.00217082,3320.4,3319.5,0.15067]
[1768663960775,3.013,3321.5,3319.7,0.15066]
[1768663960776,0.80585626,3321.1,3319.7,0.15066]
[1768663961368,0.96844726,3320.8,3319.7,0.15066]
[1768663961567,1.77430352,3320.8,3319.7,0.15066]
[1768663961768,0.96844726,3320.1,3319.1,0.00261602]
[1768663962275,0.96844726,3320.2,3319.1,0.00261602]
[1768663963775,1.77430352,3320.2,3319.1,0.00261602]
[1768663965480,0.80585626,3320.2,3319.1,0.00261602]
[1768663965777,0.96844726,3320.1,3319.1,0.00261602]
[1768663966972,1.77430352,3320.1,3319.1,0.00261602]
[1768663967866,1.77430352,3319.6,3319.1,0.00261602]
[1768663968181,1.77430352,3319.6,3318.5,41.57679688]
[1768663968365,1.77430352,3319.6,3318.5,0.77679688]
[1768663968566,0.96844726,3319.4,3318.5,0.77679688]
[1768663968978,0.96844726,3319.4,3318.5,0.77993702]
[1768663969877,0.96844726,3319.4,3318.5,0.00314014]
[1768663970476,0.80585626,3320.2,3318.5,0.00314014]
[1768663970677,0.96844726,3319.9,3318.6,1.11915726]
[1768663970982,1.77430352,3320.2,3318.8,1.11914726]
[1768663971270,0.80585626,3320.2,3319.0,0.96844726]
[1768663971472,0.96844726,3319.9,3318.8,0.1507]
[1768663971678,0.96844726,3319.7,3318.8,0.1507]
[1768663973578,0.96844726,3319.5,3318.8,0.1507]
[1768663975081,1.75817659,3319.5,3318.5,0.00314014]
[1768663981778,0.78972933,3320.0,3318.5,0.00314014]
[1768663982080,0.96844726,3319.8,3318.5,1.1223074]
[1768663982476,0.96844726,3319.8,3318.6,0.15071]
[1768663982879,1.75817659,3319.8,3318.6,0.15071]
[1768663984986,6.397,3320.7,3318.5,0.9715874]
[1768663984987,0.96844726,3320.1,3318.8,0.96844726]
[1768663985188,0.96844726,3320.1,3318.9,4.842]
[1768663988479,0.78972933,3320.3,3319.0,0.96844726]
[1768663988684,0.96844726,3320.2,3319.0,1.11913726]
[1768663993697,0.78972933,3320.3,3319.0,1.11913726]
[1768663993698,1.75817659,3320.3,3319.1,0.15069]
[1768663994292,0.78972933,3320.3,3319.3,0.15068]
[1768663998894,1.75817659,3320.7,3319.4,0.96844726]
[1768663999294,1.75817659,3320.7,3319.4,1.11912726]
[1768663999904,1.75817659,3320.7,3319.4,0.15068]
[1768664000506,0.78972933,3320.6,3319.4,0.15068]
[1768664000693,1.75817659,3320.5,3319.4,0.15068]
[1768664001403,0.78972933,3320.5,3319.4,0.15068]
[1768664001604,1.75817659,3320.5,3319.4,0.15068]
[1768664002410,0.78972933,3320.5,3319.4,0.15068]
[1768664007409,0.00328339,3320.8,3319.6,0.15067]
[1768664008501,0.00328339,3320.8,3319.7,0.15066]
[1768664009812,0.00328339,3320.8,3319.8,0.15066]
[1768664012610,0.87377312,3321.5,3320.2,0.96844726]
[1768664012812,1.84222038,3321.4,3320.1,0.15064]
[1768664013201,0.96844726,3321.2,3320.1,0.15064]
[1768664013798,0.97150829,3321.2,3320.1,0.15064]
[1768664015615,0.00306103,3321.2,3320.1,0.15064]
[1768664030228,0.87683415,3321.2,3320.1,0.15064]
[1768664030523,0.87683415,3321.2,3319.9,3.877]
[1768664033127,0.89530426,3320.8,3319.5,4.96467]
[1768664035633,0.89530426,3320.8,3319.5,0.15067]
[1768664037041,0.89530426,3320.8,3319.3,40.8]
[1768664037331,0.89530426,3320.8,3319.2,4.817]
[1768664037725,0.89530426,3320.8,3319.2,45.617]
[1768664039142,0.89530426,3320.8,3318.9,1.06621978]
[1768664039438,0.89530426,3320.8,3319.1,4.818]
[1768664039837,0.89530426,3320.8,3319.1,4.96869]
[1768664040143,0.89530426,3320.8,3319.1,5.73351978]
[1768664041649,0.89530426,3320.8,3319.3,0.15068]
[1768664042251,0.89530426,3320.8,3319.3,1.06619978]
[1768664042450,0.00306103,3321.2,3319.8,0.15066]
[1768664043250,0.00306103,3321.2,3319.9,0.91551978]
[1768664043451,0.00306103,3321.2,3319.9,5.23651978]
[1768664043745,0.00306103,3321.2,3320.0,0.15065]
[1768664043951,0.00306103,3321.2,3319.9,5.23651978]
[1768664043952,1.45760803,3321.9,3320.5,0.15063]
[1768664045049,1.46076262,3321.9,3320.5,0.15063]
[1768664049745,0.89530426,3321.8,3320.5,0.15063]
[1768664049955,0.96815622,3321.5,3320.5,0.15063]
[1768664050254,0.89530426,3321.8,3320.5,0.15063]
[1768664058559,0.89530426,3321.8,3320.6,0.15062]
[1768664066161,0.00315459,3321.9,3320.7,0.92308482]
[1768664066464,0.00315459,3321.9,3320.7,1.89124104]
[1768664066857,0.00315459,3321.9,3320.7,42.69124104]
[1768664067659,0.00315459,3321.9,3321.1,0.1506]
[1768664067860,0.00315459,3321.9,3321.1,0.15345186]
[1768664068159,0.91154961,3322.7,3321.2,0.15059]
[1768664069355,0.91511575,3322.7,3321.2,0.15059]
[1768664071770,0.91154961,3322.5,3321.2,0.15059]
[1768664072063,0.91154961,3322.4,3321.2,0.15059]
[1768664072766,0.91154961,3322.4,3321.3,0.15059]
[1768664078977,0.88152927,3322.3,3321.3,0.15059]
[1768664079478,0.88509541,3322.7,3321.1,0.00285186]
[1768664080379,0.88509541,3322.7,3321.5,0.15058]
[1768664083372,0.967472,3322.4,3321.5,0.15058]
[1768664084282,0.967472,3322.4,3321.6,0.15058]
[1768664084783,0.88509541,3322.7,3321.6,0.15058]
[1768664085082,1.85256741,3322.7,3321.6,0.15058]
[1768664087886,0.967472,3322.5,3321.6,0.15058]
[1768664088075,0.967472,3322.2,3321.6,0.15058]
[1768664091283,0.88152927,3322.4,3321.6,0.15058]
[1768664091990,1.84900127,3322.4,3321.6,0.15058]
[1768664096490,0.967472,3322.3,3321.6,0.15058]
[1768664100389,1.8708627,3322.1,3321.6,0.15058]
[1768664100591,0.9033907,3322.0,3321.6,0.15058]
[1768664103206,0.9033907,3322.0,3321.1,0.00285186]
[1768664103591,0.9033907,3321.9,3321.1,0.00285186]
[1768664105796,0.9033907,3321.9,3321.1,0.15345186]
[1768664110805,0.967472,3322.2,3321.1,0.15345186]
[1768664111007,1.8708627,3322.2,3321.1,0.15345186]
[1768664111202,0.9033907,3322.2,3321.2,0.1506]
[1768664111901,1.87442884,3322.7,3321.4,0.15058]
[1768664112307,0.9033907,3322.6,3321.4,0.15058]
[1768664112806,1.8708627,3322.5,3321.4,0.15058]
[1768664115008,0.9033907,3322.5,3321.4,0.15058]
[1768664115209,1.8708627,3322.5,3321.4,0.15058]
[1768664115409,0.9033907,3322.5,3321.4,0.15058]
[1768664115600,1.8708627,3322.5,3321.4,0.15058]
[1768664115802,0.9033907,3322.5,3321.4,0.15058]
[1768664121919,0.967472,3322.4,3321.4,0.15058]
[1768664134435,1.89071296,3322.4,3321.4,0.15058]
[1768664137734,0.92324096,3322.4,3321.4,0.15058]
[1768664138039,0.967472,3322.3,3321.4,0.15058]
[1768664140643,0.92324096,3322.4,3321.4,0.15058]
[1768664141542,0.92324096,3322.4,3321.5,0.967472]
[1768664142340,0.92324096,3322.4,3321.4,0.15058]
[1768664145147,1.89071296,3322.4,3321.4,0.15058]
[1768664145344,0.92324096,3322.4,3321.4,0.15058]
[1768664158662,0.92324096,3322.4,3321.1,0.00285186]
[1768664160561,0.88020237,3322.0,3320.7,2.21862]
[1768664160757,0.88020237,3322.0,3320.7,0.15062]
[1768664161859,0.88020237,3322.0,3320.7,0.15381749]
[1768664170374,0.88020237,3321.8,3320.7,0.15381749]
[1768664174866,0.88020237,3322.3,3320.8,0.15061]
[1768664179879,0.88020237,3322.3,3320.9,0.15061]
[1768664183100,0.90429934,3321.9,3320.9,0.15061]
[1768664184403,0.90429934,3321.5,3320.3,0.15064]
[1768664185398,0.90429934,3321.5,3320.3,0.15366121]
[1768664186507,0.90429934,3321.5,3320.3,0.00302121]
[1768664187605,0.90429934,3321.5,3320.6,0.15062]
[1768664189204,0.9674174,3321.1,3319.9,40.8]
[1768664189394,0.90429934,3321.2,3319.9,45.605]
[1768664190207,0.90429934,3321.2,3319.9,45.6079101]
[1768664190807,0.90429934,3321.2,3320.6,0.15062]
[1768664196613,0.90429934,3321.2,3319.9,40.8029101]
[1768664196806,0.90429934,3321.2,3319.9,45.6139101]
[1768664197611,0.90429934,3321.2,3320.6,0.15062]
[1768664198605,0.9674174,3322.4,3320.8,0.15061]
[1768664198805,0.9674174,3322.4,3320.9,0.15061]
[1768664198806,0.92366391,3322.3,3320.9,0.15061]
[1768664200005,0.92366391,3321.9,3320.9,0.15061]
[1768664205319,0.96793451,3321.6,3320.9,0.15061]
[1768664208920,0.92366391,3321.9,3320.9,0.15061]
[1768664209123,0.96793451,3321.6,3320.9,0.15061]
[1768664210203,1.89159842,3321.4,3320.2,0.15064]
[1768664211113,1.89159842,3321.4,3320.3,0.15064]
[1768664214021,0.92366391,3321.4,3320.3,0.15064]
[1768664214221,1.89159842,3321.4,3320.3,0.15064]
[1768664214919,0.96793451,3320.8,3320.3,0.15064]
[1768664215119,0.96793451,3320.8,3319.9,0.0029101]
[1768664215314,1.87491604,3321.0,3319.9,0.0029101]
[1768664219022,0.90698153,3320.9,3319.9,0.0029101]
[1768664219223,0.90698153,3320.8,3319.9,0.0029101]
[1768664223226,0.90698153,3321.7,3319.9,0.0029101]
[1768664223527,1.87491604,3321.3,3320.3,0.15063]
[1768664224225,0.90698153,3321.3,3320.4,0.15063]
[1768664224418,0.90698153,3321.3,3320.5,0.15063]
[1768664224620,0.90698153,3321.8,3320.6,1.11855451]
[1768664225316,1.87491604,3321.8,3320.6,0.15062]
[1768664226425,0.90698153,3321.7,3320.6,0.15062]
[1768664226625,0.96793451,3321.6,3320.6,0.15062]
[1768664228227,0.90698153,3321.5,3320.6,0.15062]
[1768664232240,1.87491604,3320.9,3319.9,0.0029101]
[1768664232428,0.90698153,3320.9,3319.9,0.0029101]
[1768664233523,0.90698153,3320.9,3320.1,0.15065]
[1768664234429,0.90698153,3322.6,3320.7,0.15062]
[1768664234737,0.90698153,3321.7,3320.7,0.15062]
[1768664237439,0.96793451,3321.6,3320.7,0.15062]
[1768664237832,0.96793451,3321.1,3319.9,0.0029101]
[1768664238135,1.87491604,3321.3,3319.9,0.97084461]
[1768664239643,1.87491604,3321.3,3320.3,0.15064]
[1768664240039,0.90698153,3321.2,3320.3,0.15064]
[1768664243742,0.96793451,3321.1,3320.3,0.15064]
[1768664243942,1.83633808,3321.1,3320.3,0.15064]
[1768664246853,0.86840357,3321.1,3320.3,0.15064]
[1768664250151,0.86840357,3321.0,3320.3,0.15064]
[1768664252044,0.86840357,3320.8,3320.3,0.15064]
[1768664252251,0.96793451,3320.7,3319.9,0.0029101]
[1768664256362,1.8747989,3320.7,3319.9,0.0029101]
[1768664257258,0.90686439,3321.7,3319.9,0.97084461]
[1768664257564,1.8747989,3321.4,3320.2,0.15064]
[1768664258358,0.90686439,3321.3,3320.2,0.15064]
[1768664259159,1.8747989,3321.3,3320.2,0.15064]
[1768664260554,1.8747989,3321.3,3320.1,0.96793451]
[1768664260555,0.90686439,3321.3,3320.4,0.15063]
[1768664260761,0.90686439,3321.7,3320.5,1.11856451]
[1768664261559,0.90686439,3322.3,3320.7,0.15062]
[1768664261761,0.90686439,3322.1,3320.9,0.96793451]
[1768664262065,0.90686439,3322.1,3320.9,0.15061]
[1768664263767,0.90686439,3322.1,3321.0,0.1506]
[1768664265266,12.80577664,3323.6,3321.2,0.15059]
[1768664265267,0.91043053,3322.7,3321.2,0.15059]
[1768664265561,0.90686439,3322.5,3321.2,0.15059]
[1768664274159,0.91056195,3322.7,3321.9,0.15056]
[1768664291075,0.91056195,3322.7,3321.0,2.068]
[1768664291275,0.91056195,3322.7,3321.3,0.15059]
[1768664299774,0.90699581,3322.4,3321.3,0.15059]
[1768664303283,0.00356614,3322.7,3321.4,0.15059]
[1768664305784,0.90933051,3322.7,3321.4,0.15059]
[1768664306292,0.90933051,3322.7,3321.5,0.15058]
[1768664319797,2.28975171,3323.7,3320.7,45.558]
[1768664319798,2.13927171,3324.7,3322.0,0.96757702]
[1768664319998,2.09276847,3325.7,3320.0,0.77477378]
[1768664319999,1.95447522,3325.7,3324.1,0.96757702]
[1768664320193,1.06466085,3325.7,3324.6,0.15044]
[1768664320399,1.06466085,3325.7,3324.7,41.19]
[1768664320595,0.25987809,3325.7,3324.8,0.09406478]
[1768664320908,0.2633021,3325.7,3324.9,4.84606478]
[1768664321096,0.2633021,3325.7,3325.0,0.09406478]
[1768664321295,0.2633021,3325.7,3325.1,0.09406478]
[1768664321496,0.2633021,3325.7,3325.2,0.09406478]
[1768664321697,0.2633021,3325.7,3325.3,0.09406478]
[1768664321991,0.2633021,3325.7,3325.4,0.09406478]
[1768664322190,0.00342401,3325.7,3325.5,0.09406478]
[1768664322392,0.00342401,3325.7,3325.2,4.754]
[1768664322393,0.96757702,3329.0,3325.7,0.90124592]
[1768664322700,0.96757702,3328.5,3326.0,0.96757702]
[1768664322902,0.96757702,3328.5,3326.1,0.09406478]
[1768664323204,0.96757702,3328.5,3326.2,0.09406478]
[1768664323404,0.96757702,3328.1,3326.3,0.09406478]
[1768664323609,0.96757702,3328.1,3326.4,0.09406478]
[1768664323798,0.96757702,3328.1,3326.5,0.09406478]
[1768664323999,0.96757702,3328.1,3326.6,0.09406478]
[1768664324206,0.96757702,3328.1,3326.7,0.09406478]
[1768664324402,0.00285055,3328.5,3326.8,0.09406478]
[1768664324608,0.88981437,3329.3,3327.2,1.11789702]
[1768664324799,0.88981437,3329.3,3327.6,0.96757702]
[1768664325109,0.88981437,3329.1,3327.7,0.09406478]
[1768664325298,0.88981437,3328.7,3326.4,0.15036]
[1768664325494,0.89343583,3328.7,3326.4,0.15353126]
[1768664325808,0.00362146,3328.7,3326.6,0.95415531]
[1768664326619,0.00362146,3328.7,3326.7,1.47523012]
[1768664326908,0.00362146,3328.7,3327.4,0.95415531]
[1768664327113,0.00362146,3328.7,3327.5,5.70115531]
[1768664327810,0.00362146,3328.7,3327.6,0.95415531]
[1768664328012,0.88981437,3330.8,3328.7,0.95415531]
[1768664328310,0.88981437,3330.2,3327.7,0.065]
[1768664328510,0.88981437,3330.2,3327.9,0.95415531]
[1768664328709,0.88981437,3330.9,3328.9,1.47395595]
[1768664328894,0.89324065,3330.9,3328.9,0.00244941]
[1768664329099,0.89324065,3330.9,3328.9,1.47640536]
[1768664329397,0.89324065,3330.9,3329.0,2.42811126]
[1768664329603,0.89324065,3330.9,3328.9,0.00244941]
[1768664329804,0.88981437,3330.5,3328.9,0.00244941]
[1768664330508,0.88981437,3330.5,3329.0,40.8]
[1768664332608,0.88981437,3330.5,3328.9,0.00244941]
[1768664332813,1.02554952,3330.3,3328.9,0.00244941]
[1768664333395,1.02554952,3330.3,3328.0,40.8]
[1768664333611,1.02554952,3330.3,3327.8,0.1503]
[1768664334215,1.02554952,3330.3,3327.9,40.8]
[1768664334409,1.02554952,3330.1,3327.9,40.80285745]
[1768664334809,1.02554952,3329.8,3327.9,40.80285745]
[1768664335309,1.02554952,3329.6,3327.9,40.80285745]
[1768664335609,1.02554952,3329.3,3327.9,0.00285745]
[1768664338409,1.02554952,3329.1,3327.2,40.8]
[1768664339223,1.02554952,3328.9,3327.2,40.8]
[1768664339522,1.02554952,3328.9,3327.2,40.8025272]
[1768664339810,1.02554952,3328.9,3327.2,0.0025272]
[1768664340117,1.02554952,3328.7,3327.2,0.0025272]
[1768664340614,1.02554952,3328.6,3327.2,0.0025272]
[1768664346202,1.02554952,3328.6,3327.3,0.09398291]
[1768664346404,1.02554952,3328.6,3327.2,0.0025272]
[1768664346617,1.02554952,3328.6,3327.3,0.09398159]
[1768664346825,1.02554952,3328.6,3327.2,0.0025272]
[1768664347115,1.02554952,3328.6,3327.3,0.09398157]
[1768664347315,1.02554952,3328.6,3327.4,0.09398157]
[1768664347622,1.02554952,3328.6,3327.5,0.09398157]
[1768664347812,1.02554952,3328.6,3327.6,0.09398157]
[1768664348005,1.02554952,3328.6,3327.2,0.0025272]
[1768664348206,1.02554952,3328.6,3327.3,0.09398597]
[1768664348413,1.02554952,3328.6,3327.4,0.09398597]
[1768664348723,1.02554952,3328.6,3327.2,0.0025272]
[1768664349116,1.02554952,3328.6,3326.7,40.8]
[1768664349416,1.02554952,3328.6,3326.2,0.15037]
[1768664349715,1.02554952,3328.4,3326.1,2.54851646]
[1768664349914,1.02554952,3328.4,3326.8,0.15034]
[1768664350114,1.02825826,3328.4,3326.8,0.15034]
[1768664354530,1.02825826,3328.4,3327.0,0.15033]
[1768664356336,0.00270874,3328.4,3327.2,1.47395595]
[1768664356626,1.47395595,3330.0,3327.5,0.15031]
[1768664356627,1.02554952,3329.9,3327.5,0.15031]
[1768664356823,1.02554952,3329.7,3327.5,0.15031]
[1768664357024,1.02554952,3329.5,3327.6,40.8]
[1768664357617,1.02786363,3329.5,3327.6,40.8]
[1768664359322,1.02554952,3329.3,3327.6,40.8]
[1768664360021,1.02554952,3329.3,3327.6,40.95031]
[1768664361130,1.02554952,3329.1,3327.6,0.15031]
[1768664361723,1.02554952,3329.1,3327.7,40.9503]
[1768664362124,1.02554952,3329.1,3327.8,0.1503]
[1768664362332,0.00231411,3329.5,3327.7,40.8]
[1768664362522,0.00231411,3329.5,3328.0,1.18914706]
[1768664362829,1.21094738,3329.5,3328.0,4.738]
[1768664363220,1.21094738,3329.5,3327.7,40.8]
[1768664363829,1.21094738,3329.5,3327.9,0.15029]
[1768664364923,0.95518177,3329.4,3327.9,0.15029]
[1768664365121,1.21094738,3329.5,3327.9,0.15029]
[1768664365323,1.20863327,3329.3,3327.9,0.15029]
[1768664365921,1.20863327,3329.3,3327.7,40.8]
[1768664368342,1.20863327,3329.1,3327.4,0.15031]
[1768664368729,1.20863327,3329.1,3327.5,40.8]
[1768664369330,1.20863327,3329.1,3327.5,40.95031]
[1768664372941,1.20863327,3329.1,3327.5,45.70031]
[1768664373134,1.20863327,3329.1,3327.5,40.95031]
[1768664379139,0.00231411,3329.5,3328.1,0.15028]
[1768664381446,1.24323863,3329.5,3328.1,0.15028]
[1768664381644,1.24323863,3329.5,3327.5,40.8]
[1768664382054,1.24323863,3329.5,3327.5,40.95031]
[1768664383444,1.24323863,3329.5,3327.5,42.20354897]
[1768664384252,1.24323863,3329.5,3327.6,1.25323897]
[1768664384454,0.00231411,3329.5,3328.0,1.40352897]
[1768664384755,0.00231411,3329.5,3328.0,6.16852897]
[1768664389853,0.00231411,3329.5,3328.0,0.15029]
[1768664394263,1.42340912,3329.5,3328.0,0.15029]
[1768664395265,1.42109501,3329.2,3327.5,40.8]
[1768664397364,0.963418,3328.2,3326.7,1.30981067]
[1768664397564,1.42109501,3328.3,3326.6,0.15035]
[1768664397760,0.00231411,3329.5,3327.0,2.42355867]
[1768664397761,1.42109501,3328.9,3327.0,2.42355867]
[1768664397959,1.42109501,3329.4,3327.2,1.30981067]
[1768664398154,1.48,3329.3,3327.4,0.963418]
[1768664398460,1.672,3329.3,3327.4,0.963418]
[1768664398761,3.09309501,3329.3,3327.4,0.963418]
[1768664398962,1.42109501,3329.3,3327.2,1.30981067]
[1768664399161,3.09309501,3329.3,3327.2,1.30981067]
[1768664399359,1.42109501,3329.2,3327.2,1.30981067]
[1768664401272,1.42109501,3328.8,3327.1,40.95033]
[1768664401564,0.963418,3328.9,3327.1,40.8]
[1768664401565,2.38451301,3328.5,3327.1,40.8]
[1768664401758,0.963418,3328.1,3326.0,1.30981067]
[1768664402068,1.42109501,3328.1,3326.1,1.30981067]
[1768664402270,0.614,3328.3,3326.4,2.27322867]
[1768664402564,1.42109501,3328.4,3326.5,1.30981067]
[1768664402869,1.42109501,3328.3,3326.5,1.30981067]
[1768664403365,1.42109501,3328.3,3326.4,0.15036]
[1768664403957,1.42109501,3327.9,3326.2,40.8]
[1768664408063,1.42109501,3327.7,3325.4,0.006014]
[1768664408459,1.42109501,3327.7,3325.5,40.8]
[1768664408769,1.57140501,3327.7,3325.5,40.8]
[1768664410765,1.42109501,3327.5,3325.5,40.8]
[1768664411165,1.42109501,3327.5,3325.4,0.006014]
[1768664411766,1.42109501,3327.5,3325.4,40.806014]
[1768664412073,1.57140501,3327.5,3325.4,40.806014]
[1768664412372,1.57141501,3327.3,3325.4,0.006014]